bitfinex/quotes_BTCUSD_20250822
["timestamp","ask_amount","ask_price","bid_price","bid_amount"]
[1755855138960,1.11662279,113180.0,113170.0,0.00516]
[1755855139447,1.11662279,113180.0,113170.0,0.00530488]
[1755855139670,1.11662279,113180.0,113170.0,0.00630488]
[1755855139883,1.13045668,113180.0,113170.0,0.00630488]
[1755855140542,1.06111631,113180.0,113170.0,0.00630488]
[1755855143791,0.91027631,113180.0,113170.0,0.00630488]
[1755855144050,1.06111631,113180.0,113170.0,0.00630488]
[1755855145285,0.72307318,113180.0,113170.0,0.00630488]
[1755855145485,1.06111631,113180.0,113170.0,0.00630488]
[1755855145910,1.04728242,113180.0,113170.0,0.00630488]
[1755855149412,1.06111612,113180.0,113170.0,0.00630488]
[1755855151177,1.40112925,113180.0,113170.0,0.00114488]
[1755855151561,1.40112925,113180.0,113170.0,0.00630488]
[1755855151757,1.06308612,113180.0,113170.0,0.00630488]
[1755855156358,1.06107612,113180.0,113170.0,0.00630488]
[1755855160275,1.06304612,113180.0,113170.0,0.00114488]
[1755855161305,1.07960794,113180.0,113170.0,0.00114488]
[1755855161699,1.41765107,113180.0,113170.0,0.00114488]
[1755855162753,1.41765107,113180.0,113170.0,0.00424488]
[1755855163726,1.41765107,113180.0,113170.0,0.00114488]
[1755855163944,1.43384473,113180.0,113170.0,0.00114488]
[1755855164128,1.45042019,113180.0,113170.0,0.00114488]
[1755855164348,0.51672528,113170.0,113160.0,0.02383646]
[1755855164471,1.35907457,113170.0,113160.0,0.02598185]
[1755855164682,0.51674089,113160.0,113150.0,0.03183448]
[1755855164883,1.34358715,113160.0,113150.0,0.00516]
[1755855165311,1.35742282,113160.0,113150.0,0.00516]
[1755855165508,1.35939282,113160.0,113150.0,0.00516]
[1755855165714,1.35742282,113160.0,113150.0,0.00516]
[1755855165923,1.34358715,113160.0,113150.0,0.00516]
[1755855166752,1.34358715,113160.0,113150.0,0.00816]
[1755855166953,1.36145065,113160.0,113150.0,0.00816]
[1755855167836,1.37058153,113160.0,113150.0,0.00916]
[1755855168512,1.36861153,113160.0,113150.0,0.00916]
[1755855169121,1.38244755,113160.0,113150.0,0.00916]
[1755855169954,1.45044755,113160.0,113150.0,1e-08]
[1755855170153,1.45242755,113160.0,113150.0,1e-08]
[1755855170385,1.48518303,113160.0,113150.0,1e-08]
[1755855170586,0.17675651,113150.0,113140.0,0.07367804]
[1755855170801,0.68184367,113150.0,113140.0,0.07581804]
[1755855172976,1.02400367,113150.0,113140.0,0.07043804]
[1755855173464,0.87324367,113150.0,113140.0,0.07043804]
[1755855173678,1.02396367,113150.0,113140.0,0.07581804]
[1755855174236,1.02180367,113150.0,113140.0,0.07581804]
[1755855174439,0.51675651,113150.0,113140.0,0.07581804]
[1755855174663,1.00551964,113150.0,113140.0,0.07581804]
[1755855175035,0.51675651,113150.0,113140.0,0.07581804]
[1755855175248,1.00551964,113150.0,113140.0,0.07581804]
[1755855175532,1.00767964,113150.0,113140.0,0.00538]
[1755855175733,1.05671915,113150.0,113140.0,0.00538]
[1755855176032,1.02396367,113150.0,113140.0,0.00538]
[1755855176848,0.87324367,113150.0,113140.0,0.00538]
[1755855177051,1.02396367,113150.0,113140.0,0.00538]
[1755855177279,1.02180367,113150.0,113140.0,0.00538]
[1755855177406,0.87108367,113150.0,113140.0,0.00538]
[1755855177601,1.00551964,113150.0,113140.0,0.00538]
[1755855180977,1.00749964,113150.0,113140.0,0.00538]
[1755855181472,1.00749964,113150.0,113140.0,0.00324]
[1755855182668,1.00749964,113150.0,113140.0,0.00538]
[1755855183410,1.00749964,113150.0,113140.0,0.00324]
[1755855183616,0.17677214,113140.0,113130.0,0.07367804]
[1755855183824,0.66553527,113140.0,113130.0,0.07581804]
[1755855184432,0.67937294,113140.0,113130.0,0.07581804]
[1755855184865,0.67937294,113140.0,113130.0,0.07681804]
[1755855186302,0.67937294,113140.0,113130.0,0.07781804]
[1755855190633,0.34128981,113140.0,113130.0,0.07781804]
[1755855190790,0.34128981,113140.0,113130.0,0.08002788]
[1755855190990,0.32745214,113140.0,113130.0,0.10439804]
[1755855192332,0.32745214,113140.0,113130.0,0.13623252]
[1755855192537,0.32745214,113140.0,113130.0,0.03396]
[1755855192538,0.66549527,113140.0,113130.0,0.03396]
[1755855192718,0.70023075,113140.0,113130.0,0.002]
[1755855193080,0.66747527,113140.0,113130.0,0.002]
[1755855194335,0.68131313,113140.0,113130.0,0.03383448]
[1755855194718,0.68131313,113140.0,113130.0,0.002]
[1755855195923,0.68131313,113140.0,113130.0,0.001]
[1755855196534,0.17678776,113130.0,113120.0,0.10940641]
[1755855196728,0.51483089,113130.0,113120.0,0.11154641]
[1755855196895,0.66547089,113130.0,113120.0,0.11154641]
[1755855197757,0.66547089,113130.0,113120.0,0.11202863]
[1755855197973,0.66547089,113130.0,113120.0,0.11402863]
[1755855199134,0.66746089,113130.0,113120.0,0.08219415]
[1755855199340,0.66746089,113130.0,113120.0,0.10869264]
[1755855199547,0.70021637,113130.0,113120.0,0.10869264]
[1755855199775,0.66746089,113130.0,113120.0,0.08210964]
[1755855202889,0.66746089,113130.0,113120.0,0.08707964]
[1755855203110,0.66742089,113130.0,113120.0,0.08707964]
[1755855208545,0.66742089,113130.0,113120.0,0.03933071]
[1755855208740,0.66742089,113130.0,113120.0,0.03436071]
[1755855209520,0.66742089,113130.0,113120.0,0.06094671]
[1755855209696,0.32937776,113130.0,113120.0,0.06094671]
[1755855209858,0.66742089,113130.0,113120.0,0.06094671]
[1755855210463,0.66780122,113130.0,113120.0,0.06094671]
[1755855211703,0.66780122,113130.0,113120.0,0.06390671]
[1755855212488,0.66780122,113130.0,113120.0,0.06094671]
[1755855214971,0.51720122,113130.0,113120.0,0.06094671]
[1755855215123,0.66776122,113130.0,113120.0,0.06094671]
[1755855215656,0.66776122,113130.0,113120.0,0.03436071]
[1755855215657,0.51720122,113130.0,113120.0,0.03436071]
[1755855215858,0.66776122,113130.0,113120.0,0.03436071]
[1755855216634,0.66772122,113130.0,113120.0,0.00248222]
[1755855219231,0.66520122,113130.0,113120.0,0.00248222]
[1755855222028,1.02312999,113130.0,113120.0,0.00248222]
[1755855223644,1.36312999,113130.0,113120.0,0.00248222]
[1755855224072,1.37696954,113130.0,113120.0,0.00248222]
[1755855224225,1.37696954,113130.0,113120.0,0.00148222]
[1755855225139,1.37696954,113130.0,113120.0,0.00048222]
[1755855226650,1.22644954,113130.0,113120.0,0.00048222]
[1755855227063,1.37692954,113130.0,113120.0,0.00048222]
[1755855227880,1.36308999,113130.0,113120.0,0.00048222]
[1755855228852,1.36067999,113130.0,113120.0,0.00048222]
[1755855230811,1.36307999,113130.0,113120.0,0.00048222]
[1755855230940,1.21259999,113130.0,113120.0,0.00048222]
[1755855231154,1.21259999,113130.0,113120.0,0.00561222]
[1755855231155,1.21019999,113130.0,113120.0,0.00561222]
[1755855231555,1.36063999,113130.0,113120.0,0.00561222]
[1755855231756,1.37447952,113130.0,113120.0,0.00561222]
[1755855232695,1.37245952,113130.0,113120.0,0.00561222]
[1755855233093,1.37447952,113130.0,113120.0,0.00561222]
[1755855235857,0.17426776,113130.0,113120.0,0.00561222]
[1755855236059,0.17426776,113130.0,113120.0,0.76934389]
[1755855236263,0.17426776,113130.0,113120.0,1.08234444]
[1755855236477,0.17678776,113130.0,113120.0,1.10892544]
[1755855236714,0.17678776,113130.0,113120.0,1.1170029]
[1755855237236,0.17678776,113130.0,113120.0,0.37468949]
[1755855237408,0.17678776,113130.0,113120.0,0.56367295]
[1755855237614,0.17678776,113130.0,113120.0,0.56267295]
[1755855237849,0.51521122,113130.0,113120.0,0.20680047]
[1755855238065,0.51521122,113130.0,113120.0,0.16984452]
[1755855238490,0.17678776,113130.0,113120.0,0.16984452]
[1755855238903,0.17678776,113130.0,113120.0,0.43451756]
[1755855239112,0.17678776,113130.0,113120.0,0.77286477]
[1755855239313,0.19062543,113130.0,113120.0,0.76886477]
[1755855239514,0.17422798,113130.0,113120.0,0.25371417]
[1755855239718,0.32256128,113140.0,113120.0,0.25771417]
[1755855239922,0.17678776,113130.0,113120.0,0.2387083]
[1755855240321,0.17678776,113130.0,113120.0,0.41551169]
[1755855240467,0.17678776,113130.0,113120.0,0.41858169]
[1755855240678,0.17678776,113130.0,113120.0,0.2397783]
[1755855242254,0.19062545,113130.0,113120.0,0.41758169]
[1755855242460,0.19062545,113130.0,113120.0,0.7559289]
[1755855242585,0.19062545,113130.0,113120.0,0.7549289]
[1755855242998,0.19062545,113130.0,113120.0,0.7569289]
[1755855245362,0.19062545,113130.0,113120.0,1.0236289]
[1755855247183,0.19062545,113130.0,113120.0,0.93675925]
[1755855247384,0.17678776,113130.0,113120.0,0.93675925]
[1755855247994,0.17678776,113130.0,113120.0,0.59841204]
[1755855248319,0.17678776,113130.0,113120.0,0.42160865]
[1755855249309,0.17876776,113130.0,113120.0,0.42160865]
[1755855249732,0.17876776,113130.0,113120.0,0.4693752]
[1755855249907,0.17678776,113130.0,113120.0,0.4693752]
[1755855251115,0.17678776,113130.0,113120.0,0.48538056]
[1755855251519,0.17678776,113130.0,113120.0,0.43761401]
[1755855251744,0.17678776,113130.0,113120.0,0.42160865]
[1755855251956,0.17216128,113140.0,113120.0,1.00197482]
[1755855252155,0.17216128,113140.0,113130.0,0.4305118]
[1755855252354,0.17216128,113140.0,113130.0,0.58068196]
[1755855252567,0.17216128,113140.0,113130.0,0.69938229]
[1755855252800,0.17216128,113140.0,113130.0,0.53782284]
[1755855253527,0.17216128,113140.0,113130.0,0.36103508]
[1755855255201,0.17216128,113140.0,113130.0,0.36203508]
[1755855255377,0.17216128,113140.0,113130.0,1.16231907]
[1755855255561,0.17677214,113140.0,113130.0,1.16231907]
[1755855255768,0.17677214,113140.0,113130.0,0.82397186]
[1755855256013,0.17677214,113140.0,113130.0,0.6471841]
[1755855256448,0.17677214,113140.0,113130.0,0.82397186]
[1755855256900,0.17677214,113140.0,113130.0,0.85054986]
[1755855259369,0.17677214,113140.0,113130.0,0.72152865]
[1755855259593,0.17677214,113140.0,113130.0,0.72148865]
[1755855260040,0.17677214,113140.0,113130.0,0.57120865]
[1755855260241,0.17677214,113140.0,113130.0,0.72148865]
[1755855263012,0.17875214,113140.0,113130.0,0.71944865]
[1755855263223,0.17875214,113140.0,113130.0,0.72141865]
[1755855263436,0.17677214,113140.0,113130.0,0.72141865]
[1755855264206,0.17677214,113140.0,113130.0,0.68958797]
[1755855265029,0.17677214,113140.0,113130.0,0.86637573]
[1755855265206,0.17677214,113140.0,113130.0,0.68958797]
[1755855268229,0.17677214,113140.0,113130.0,0.68954797]
[1755855270989,0.17677214,113140.0,113130.0,0.68854797]
[1755855271445,0.17677214,113140.0,113130.0,0.68754797]
[1755855271802,0.17677214,113140.0,113130.0,0.69154797]
[1755855273037,0.17677214,113140.0,113130.0,0.60467832]
[1755855275816,0.17677214,113140.0,113130.0,0.5872293]
[1755855279154,0.17875214,113140.0,113130.0,0.45443832]
[1755855279384,0.17875214,113140.0,113130.0,0.60463832]
[1755855279600,0.51709935,113140.0,113130.0,0.5821293]
[1755855281057,0.51709935,113140.0,113130.0,0.4319293]
[1755855281277,0.51954935,113140.0,113130.0,0.5821293]
[1755855282100,0.51954935,113140.0,113130.0,0.49524455]
[1755855283062,0.51954935,113140.0,113130.0,0.31846655]
[1755855283968,0.51954935,113140.0,113130.0,0.05176655]
[1755855285568,0.51954935,113140.0,113130.0,0.08364429]
[1755855285800,0.51954935,113140.0,113130.0,0.03587774]
[1755855286459,0.51954935,113140.0,113130.0,0.004]
[1755855286729,0.51954935,113140.0,113130.0,0.002]
[1755855287157,0.66970935,113140.0,113130.0,0.002]
[1755855287336,0.66722935,113140.0,113130.0,0.002]
[1755855287541,0.66722935,113140.0,113130.0,0.003]
[1755855287966,0.66722935,113140.0,113130.0,0.001]
[1755855288616,0.66722935,113140.0,113130.0,0.002]
[1755855292933,0.66477935,113140.0,113130.0,0.002]
[1755855293146,0.66477935,113140.0,113130.0,0.001]
[1755855293323,0.66722935,113140.0,113130.0,0.001]
[1755855293531,0.66477935,113140.0,113130.0,0.001]
[1755855294125,0.17678776,113130.0,113120.0,0.00359222]
[1755855294321,0.51513497,113130.0,113120.0,0.00561222]
[1755855294918,0.5289735,113130.0,113120.0,0.00561222]
[1755855295114,0.5309535,113130.0,113120.0,0.00048222]
[1755855295518,0.5309535,113130.0,113120.0,0.00148222]
[1755855295723,0.6810735,113130.0,113120.0,0.27129222]
[1755855297747,0.6810735,113130.0,113120.0,0.27229222]
[1755855299667,0.6810735,113130.0,113120.0,0.27431222]
[1755855300365,0.66723497,113130.0,113120.0,0.27431222]
[1755855301331,0.32888776,113130.0,113120.0,0.27431222]
[1755855301536,0.66723497,113130.0,113120.0,0.27431222]
[1755855303582,0.68103384,113130.0,113120.0,0.27431222]
[1755855304430,0.6810976,113130.0,113120.0,0.27431222]
[1755855307654,0.66725873,113130.0,113120.0,0.27431222]
[1755855307845,0.66725873,113130.0,113120.0,0.27229222]
[1755855308833,0.66725873,113130.0,113120.0,0.26918222]
[1755855308834,1.3481197,113130.0,113120.0,0.26918222]
[1755855309037,1.42452749,113130.0,113120.0,0.26918222]
[1755855309835,1.42452749,113130.0,113120.0,0.26818222]
[1755855310030,1.34244749,113130.0,113120.0,0.26818222]
[1755855310255,1.45973201,113130.0,113120.0,0.26818222]
[1755855310492,1.46000073,113130.0,113120.0,0.26718222]
[1755855310691,1.30996073,113130.0,113120.0,0.26718222]
[1755855310901,1.47484105,113130.0,113120.0,0.26718222]
[1755855311099,1.47384105,113130.0,113120.0,0.26718222]
[1755855311337,0.17680339,113120.0,113110.0,0.0004]
[1755855311548,0.51977872,113120.0,113110.0,0.0004]
[1755855311753,0.7025742,113120.0,113110.0,0.0004]
[1755855311992,0.7291632,113120.0,113110.0,0.0004]
[1755855312482,0.69640772,113120.0,113110.0,0.0004]
[1755855314234,0.69640772,113120.0,113110.0,0.00044]
[1755855315821,1.03640772,113120.0,113110.0,0.00044]
[1755855316183,1.05386378,113120.0,113110.0,0.00044]
[1755855318476,1.05586378,113120.0,113110.0,0.00044]
[1755855322313,1.06970582,113120.0,113110.0,0.00044]
[1755855324048,1.1024613,113120.0,113110.0,0.00044]
[1755855324705,0.9524213,113120.0,113110.0,0.00044]
[1755855324908,0.91721582,113120.0,113110.0,0.00044]
[1755855325068,1.06721582,113120.0,113110.0,0.00044]
[1755855326411,0.57867049,113120.0,113110.0,0.00568]
[1755855326625,1.06523582,113120.0,113110.0,0.00568]
[1755855327008,1.05139378,113120.0,113110.0,0.00568]
[1755855327418,0.88393772,113120.0,113110.0,0.00568]
[1755855327595,1.03393772,113120.0,113110.0,0.00568]
[1755855328399,1.03293772,113120.0,113110.0,0.00568]
[1755855328786,1.03393772,113120.0,113110.0,0.00568]
[1755855329259,1.03293772,113120.0,113110.0,0.00568]
[1755855330246,1.04577871,113120.0,113110.0,0.00568]
[1755855332773,1.04573871,113120.0,113110.0,0.00568]
[1755855335185,0.89577871,113120.0,113110.0,0.00568]
[1755855335368,1.04573871,113120.0,113110.0,0.00568]
[1755855335907,0.83926391,113120.0,113110.0,0.00568]
[1755855336114,1.00222631,113120.0,113110.0,0.00568]
[1755855338154,0.85226631,113120.0,113110.0,0.00568]
[1755855338396,1.00222631,113120.0,113110.0,0.00568]
[1755855339396,1.01606746,113120.0,113110.0,0.00568]
[1755855340099,1.01606746,113120.0,113110.0,0.00044]
[1755855340313,1.01851746,113120.0,113110.0,0.00044]
[1755855342577,1.03597352,113120.0,113110.0,0.00044]
[1755855342993,1.06256452,113120.0,113110.0,0.00044]
[1755855343996,0.72601919,113120.0,113110.0,0.00044]
[1755855344203,1.06456452,113120.0,113110.0,0.00044]
[1755855346504,0.17681902,113110.0,113100.0,0.0005]
[1755855346702,0.66528435,113110.0,113100.0,0.0005]
[1755855349608,1.02313122,113110.0,113100.0,0.0005]
[1755855349815,1.02756122,113110.0,113100.0,0.0005]
[1755855350023,1.05415422,113110.0,113100.0,0.0005]
[1755855351784,1.06799712,113110.0,113100.0,0.0005]
[1755855353034,0.17683465,113100.0,113090.0,0.0004]
[1755855353208,1.09347773,113100.0,113090.0,0.0004]
[1755855353387,1.43447306,113100.0,113090.0,0.0004]
[1755855353572,1.28459306,113100.0,113090.0,0.0004]
[1755855353782,1.46106806,113100.0,113090.0,0.0004]
[1755855354378,1.46106806,113100.0,113090.0,0.0024]
[1755855354795,1.46106806,113100.0,113090.0,0.0014]
[1755855355270,1.45962806,113100.0,113090.0,0.0004]
[1755855355486,1.46062806,113100.0,113090.0,0.0004]
[1755855357057,1.46058806,113100.0,113090.0,0.0004]
[1755855360863,1.47443243,113100.0,113090.0,0.0004]
[1755855361665,1.47443243,113100.0,113090.0,1e-08]
[1755855362316,1.50718791,113100.0,113090.0,1e-08]
[1755855363716,1.52371899,113100.0,113090.0,1e-08]
[1755855364343,0.17688157,113070.0,113060.0,0.00351]
[1755855364555,0.6652669,113070.0,113060.0,0.032268]
[1755855364747,0.6652669,113070.0,113060.0,0.00567]
[1755855364968,0.70769534,113070.0,113060.0,0.00567]
[1755855365768,0.70769534,113070.0,113060.0,0.00575484]
[1755855365996,0.70769534,113070.0,113060.0,0.00775484]
[1755855366196,0.71384882,113070.0,113060.0,0.00775484]
[1755855366394,0.71384882,113070.0,113060.0,0.00575484]
[1755855366597,0.68109334,113070.0,113060.0,0.00575484]
[1755855366803,0.70050415,113070.0,113060.0,0.00575484]
[1755855367226,1.37904948,113070.0,113060.0,1e-08]
[1755855367425,1.41180496,113070.0,113060.0,1e-08]
[1755855367631,1.44953948,113070.0,113060.0,1e-08]
[1755855368651,1.45053948,113070.0,113060.0,1e-08]
[1755855368860,0.17689722,113060.0,113050.0,0.00094]
[1755855369071,0.69607474,113060.0,113050.0,0.00098819]
[1755855369303,1.03607474,113060.0,113050.0,0.00098819]
[1755855370174,0.54768941,113060.0,113050.0,0.00625819]
[1755855370384,0.69752941,113060.0,113050.0,0.00625819]
[1755855370602,1.03409474,113060.0,113050.0,0.00625819]
[1755855371498,1.03509474,113060.0,113050.0,0.00625819]
[1755855372798,0.54670941,113060.0,113050.0,0.00625819]
[1755855373315,0.69654941,113060.0,113050.0,0.00625819]
[1755855373957,0.67674744,113060.0,113050.0,0.00625819]
[1755855374988,0.67670744,113060.0,113050.0,0.00625819]
[1755855378365,1.01525277,113060.0,113050.0,0.00625819]
[1755855378570,0.67670744,113060.0,113050.0,0.00625819]
[1755855378783,1.01525277,113060.0,113050.0,0.00625819]
[1755855378998,0.67670744,113060.0,113050.0,0.00625819]
[1755855381234,0.52690744,113060.0,113050.0,0.00625819]
[1755855381511,0.67670744,113060.0,113050.0,0.00625819]
[1755855382183,0.33670744,113060.0,113050.0,0.00625819]
[1755855382403,0.33570744,113060.0,113050.0,0.00625819]
[1755855382620,0.33570744,113060.0,113050.0,0.00725819]
[1755855383301,0.33570744,113060.0,113050.0,0.00825819]
[1755855384373,0.17689722,113060.0,113050.0,0.00825819]
[1755855384587,0.17689722,113060.0,113050.0,0.61502396]
[1755855384815,0.17688157,113070.0,113050.0,0.61060114]
[1755855385025,0.17688157,113070.0,113060.0,0.34075654]
[1755855385252,0.17688157,113070.0,113060.0,0.34383533]
[1755855385462,0.17688157,113070.0,113060.0,0.52073255]
[1755855385664,0.17688157,113070.0,113060.0,0.34383533]
[1755855385798,0.17688157,113070.0,113060.0,0.40798522]
[1755855386931,0.17688157,113070.0,113060.0,0.34383533]
[1755855387263,0.17688157,113070.0,113060.0,0.43072008]
[1755855387816,0.19072747,113070.0,113060.0,0.43072008]
[1755855388029,0.19072747,113070.0,113060.0,0.43172008]
[1755855388231,0.19072747,113070.0,113060.0,0.6086173]
[1755855388486,0.0138459,113070.0,113060.0,1.01151371]
[1755855388678,0.18572327,113080.0,113070.0,0.17688157]
[1755855388679,0.33552327,113080.0,113070.0,0.17688157]
[1755855388815,0.33552327,113080.0,113070.0,0.63941167]
[1755855389016,0.18572327,113080.0,113070.0,0.63941167]
[1755855389237,0.33552327,113080.0,113070.0,0.63941167]
[1755855389960,0.18572327,113080.0,113070.0,0.63941167]
[1755855390177,0.18572327,113080.0,113070.0,0.64041167]
[1755855390800,0.19956754,113080.0,113070.0,0.64041167]
[1755855391004,0.19956754,113080.0,113070.0,0.64141167]
[1755855392108,0.19956754,113080.0,113070.0,0.4645301]
[1755855392550,0.19072425,113080.0,113070.0,0.74573034]
[1755855392781,0.01384427,113080.0,113070.0,0.99740602]
[1755855392985,0.01384427,113080.0,113070.0,0.70662724]
[1755855393841,0.01384427,113080.0,113070.0,0.85638724]
[1755855394121,0.29471786,113090.0,113080.0,0.17686593]
[1755855394329,0.1768769,113090.0,113080.0,0.17901593]
[1755855394529,0.19072044,113090.0,113080.0,0.26902558]
[1755855394940,0.19956295,113090.0,113080.0,0.26902558]
[1755855395746,0.19956295,113090.0,113080.0,0.35591033]
[1755855395955,0.1768769,113090.0,113080.0,0.62261033]
[1755855397016,0.17685029,113090.0,113080.0,0.62261033]
[1755855397221,0.17685029,113090.0,113080.0,0.77437033]
[1755855397403,0.17685029,113090.0,113080.0,0.77637033]
[1755855397759,0.19069347,113090.0,113080.0,0.77637033]
[1755855399058,0.5312088,113090.0,113080.0,0.35758475]
[1755855399311,0.56396428,113090.0,113080.0,0.35758475]
[1755855399511,0.5312088,113090.0,113080.0,0.35758475]
[1755855400123,0.19266347,113090.0,113080.0,0.35758475]
[1755855400333,0.5312088,113090.0,113080.0,0.35758475]
[1755855400763,0.19069347,113090.0,113080.0,0.6169396]
[1755855405725,0.01384318,113090.0,113080.0,0.97293395]
[1755855405933,0.01384318,113090.0,113080.0,0.73282295]
[1755855406080,0.01384318,113090.0,113080.0,0.76463297]
[1755855406488,0.41280006,113110.0,113090.0,0.17683983]
[1755855406719,0.34476006,113110.0,113100.0,0.00750043]
[1755855407401,0.34504006,113110.0,113100.0,0.00750043]
[1755855407773,0.34500006,113110.0,113100.0,0.00754862]
[1755855408292,0.19456006,113110.0,113100.0,0.00754862]
[1755855409770,0.20840155,113110.0,113100.0,0.00754862]
[1755855410457,0.54694688,113110.0,113100.0,0.00754862]
[1755855410871,0.54892688,113110.0,113100.0,0.00754862]
[1755855411078,0.21038155,113110.0,113100.0,0.27424862]
[1755855411277,0.54892688,113110.0,113100.0,0.28894663]
[1755855411491,0.54892688,113110.0,113100.0,0.28994663]
[1755855411716,0.54892688,113110.0,113100.0,0.28465663]
[1755855411928,0.54892688,113110.0,113100.0,0.28565663]
[1755855417277,0.69912688,113110.0,113100.0,0.28874663]
[1755855417603,0.69912688,113110.0,113100.0,0.29075663]
[1755855417818,0.54694688,113110.0,113100.0,0.29075663]
[1755855418067,0.54694688,113110.0,113100.0,0.55447603]
[1755855418269,0.54694688,113110.0,113100.0,0.37764138]
[1755855418475,0.54694688,113110.0,113100.0,0.4094514]
[1755855418691,0.54694688,113110.0,113100.0,0.58628605]
[1755855418860,0.54694688,113110.0,113100.0,0.4094514]
[1755855420083,0.54892688,113110.0,113100.0,0.4043514]
[1755855420485,0.54694688,113110.0,113100.0,0.39254296]
[1755855421116,0.54694688,113110.0,113100.0,0.56937761]
[1755855421335,0.54694688,113110.0,113100.0,0.39254296]
[1755855422508,0.20840155,113110.0,113100.0,0.39254296]
[1755855422710,0.54694688,113110.0,113100.0,0.56937761]
[1755855423365,0.54614688,113110.0,113100.0,0.39254296]
[1755855423989,0.54614688,113110.0,113100.0,0.56937761]
[1755855424199,0.54614688,113110.0,113100.0,0.39254296]
[1755855425811,0.20760155,113110.0,113100.0,0.39254296]
[1755855426014,0.54614688,113110.0,113100.0,0.39254296]
[1755855426224,0.54614688,113110.0,113100.0,0.47941261]
[1755855426533,0.54614688,113110.0,113100.0,0.50599961]
[1755855428041,0.54812688,113110.0,113100.0,0.54274296]
[1755855428236,0.54812688,113110.0,113100.0,0.39254296]
[1755855428417,0.54812688,113110.0,113100.0,0.54278296]
[1755855429017,0.54812688,113110.0,113100.0,0.53768296]
[1755855429618,0.01384149,113110.0,113100.0,0.85527122]
[1755855429816,0.67451965,113130.0,113110.0,0.1942563]
[1755855430050,0.67451965,113130.0,113120.0,0.08688475]
[1755855430271,0.67649965,113130.0,113120.0,0.08997475]
[1755855430437,0.67649965,113130.0,113120.0,0.11655675]
[1755855431623,1.01504498,113130.0,113120.0,0.11346675]
[1755855431830,1.01504498,113130.0,113120.0,0.11446675]
[1755855432054,1.01504498,113130.0,113120.0,0.11546675]
[1755855432257,1.02403316,113130.0,113120.0,0.11546675]
[1755855433090,1.03787253,113130.0,113120.0,0.11546675]
[1755855434598,1.03787253,113130.0,113120.0,0.39907519]
[1755855435772,1.03787253,113130.0,113120.0,0.38216675]
[1755855436780,1.04032253,113130.0,113120.0,0.295282]
[1755855436995,1.04032253,113130.0,113120.0,0.2687]
[1755855437661,1.07307801,113130.0,113120.0,0.002]
[1755855437816,1.04032253,113130.0,113120.0,0.002]
[1755855438018,1.02648316,113130.0,113120.0,0.002]
[1755855438369,0.87620316,113130.0,113120.0,0.002]
[1755855438531,1.02395316,113130.0,113120.0,0.002]
[1755855439136,0.3468625,113130.0,113120.0,0.002]
[1755855439357,0.53520783,113130.0,113120.0,0.00715]
[1755855439570,0.67443965,113130.0,113120.0,0.00715]
[1755855440471,0.33589432,113130.0,113120.0,0.18395339]
[1755855440940,0.67443965,113130.0,113120.0,0.18395339]
[1755855441156,0.33589432,113130.0,113120.0,0.18395339]
[1755855441368,0.68827901,113130.0,113120.0,0.18395339]
[1755855441583,0.68831901,113130.0,113120.0,0.20488508]
[1755855441794,0.53807901,113130.0,113120.0,0.20488508]
[1755855442211,0.01383936,113130.0,113120.0,0.42115814]
[1755855442426,0.52917245,113130.0,113120.0,0.45296816]
[1755855443529,0.52917245,113130.0,113120.0,0.42115814]
[1755855444170,0.53113245,113130.0,113120.0,0.002]
[1755855444385,0.86967778,113130.0,113120.0,0.15232]
[1755855445260,0.53113245,113130.0,113120.0,0.15232]
[1755855446051,0.19258712,113130.0,113120.0,0.03381002]
[1755855446399,0.53113245,113130.0,113120.0,0.03381002]
[1755855447302,0.53113245,113130.0,113120.0,0.06554302]
[1755855447536,0.19258712,113130.0,113120.0,0.06554302]
[1755855447977,0.51729309,113130.0,113120.0,0.06554302]
[1755855449035,0.17874776,113130.0,113120.0,0.06554302]
[1755855449251,0.51729309,113130.0,113120.0,0.06554302]
[1755855449578,0.51729309,113130.0,113120.0,0.06039302]
[1755855449778,0.85583842,113130.0,113120.0,0.06039302]
[1755855449985,0.17874776,113130.0,113120.0,0.06039302]
[1755855450230,0.85583842,113130.0,113120.0,0.06039302]
[1755855451192,0.86967724,113130.0,113120.0,0.06039302]
[1755855452246,0.86967724,113130.0,113120.0,0.32709302]
[1755855452641,0.19258658,113130.0,113120.0,0.32709302]
[1755855452854,0.86967724,113130.0,113120.0,0.32709302]
[1755855453065,0.86967724,113130.0,113120.0,0.40070085]
[1755855453496,0.53113191,113130.0,113120.0,0.40070085]
[1755855453704,0.68157191,113130.0,113120.0,0.33017302]
[1755855453905,0.68161191,113130.0,113120.0,0.33017302]
[1755855454123,0.68161191,113130.0,113120.0,0.32709302]
[1755855455102,1.02015724,113130.0,113120.0,0.32709302]
[1755855455306,1.02011724,113130.0,113120.0,0.32916302]
[1755855455443,0.68157191,113130.0,113120.0,0.33224302]
[1755855455646,0.53113191,113130.0,113120.0,0.33224302]
[1755855456467,0.52917191,113130.0,113120.0,0.57977724]
[1755855457057,0.52917191,113130.0,113120.0,0.50904641]
[1755855457336,0.19062658,113130.0,113120.0,0.50904641]
[1755855457521,0.52917191,113130.0,113120.0,0.50904641]
[1755855458010,0.51533309,113130.0,113120.0,0.50904641]
[1755855458211,0.51533309,113130.0,113120.0,0.55681296]
[1755855458762,0.51533309,113130.0,113120.0,0.38000957]
[1755855459243,0.51533309,113130.0,113120.0,0.4507404]
[1755855459422,0.51533309,113130.0,113120.0,0.41893038]
[1755855459680,0.52917153,113130.0,113120.0,0.41893038]
[1755855459891,0.52917153,113130.0,113120.0,0.59573377]
[1755855460734,0.52917153,113130.0,113120.0,0.62760192]
[1755855461176,0.30113622,113130.0,113120.0,0.57983537]
[1755855461434,0.47792398,113130.0,113120.0,0.57983537]
[1755855461642,0.19062622,113130.0,113120.0,0.57983537]
[1755855461854,0.52917155,113130.0,113120.0,0.57983537]
[1755855464881,0.52970155,113130.0,113120.0,0.32715115]
[1755855465095,0.87067688,113130.0,113120.0,0.47731115]
[1755855465280,0.86824688,113130.0,113120.0,0.445443]
[1755855465892,0.85440842,113130.0,113120.0,0.445443]
[1755855466320,0.51586309,113130.0,113120.0,0.62431639]
[1755855466530,0.17678776,113130.0,113120.0,0.74256476]
[1755855466740,0.51533309,113130.0,113120.0,0.74256476]
[1755855466949,0.51533309,113130.0,113120.0,0.82944951]
[1755855467159,0.51533309,113130.0,113120.0,0.74614929]
[1755855468706,0.52917165,113130.0,113120.0,0.74614929]
[1755855470218,0.53065165,113130.0,113120.0,0.4191859]
[1755855470430,0.53065165,113130.0,113120.0,0.5641559]
[1755855470608,0.53065165,113130.0,113120.0,0.32715115]
[1755855470609,0.86919698,113130.0,113120.0,0.32715115]
[1755855470827,0.86919698,113130.0,113120.0,0.445363]
[1755855471233,0.86919698,113130.0,113120.0,0.47723115]
[1755855471447,0.86919698,113130.0,113120.0,0.5249977]
[1755855471653,0.86919698,113130.0,113120.0,0.3749177]
[1755855471869,0.86919698,113130.0,113120.0,0.5249977]
[1755855473118,0.86919698,113130.0,113120.0,0.5249577]